lending/lending_fUSD_20250406
["ID","MTS","AMOUNT","RATE_DAILY","PERIOD"]
[357249795,1743942675934,-500.0,0.00057534,120]
[357249796,1743942675944,-412.03420573,0.00057534,120]
[357249797,1743942675954,-580.11898407,0.00057534,120]
[357249798,1743942675963,-522.52706923,0.00057534,120]
[357249799,1743942675973,-500.0,0.00057534,120]
[357249800,1743942675983,-500.0,0.00057534,120]
[357249801,1743942675992,-500.0,0.00057534,120]
[357249802,1743942676002,-500.0,0.00057534,120]
[357249803,1743942676011,-500.0,0.00057534,120]
[357249804,1743942676022,-500.0,0.00057534,120]
[357249805,1743942676031,-511.54744142,0.00057534,120]
[357249806,1743942676041,-500.0,0.00057534,120]
[357249807,1743942676050,-500.0,0.00057534,120]
[357249808,1743942676059,-500.0,0.00057534,120]
[357249809,1743942676070,-554.61808136,0.00057534,120]
[357249810,1743942676079,-500.0,0.00057534,120]
[357249811,1743942676089,-500.0,0.00057534,120]
[357249812,1743942676098,-511.62202367,0.00057534,120]
[357249813,1743942676108,-500.0,0.00057534,120]
[357249814,1743942676117,-500.0,0.00057534,120]
[357249815,1743942676128,-500.0,0.00057534,120]
[357249816,1743942676139,-500.0,0.00057534,120]
[357249817,1743942676153,-500.0,0.00057534,120]
[357249818,1743942676162,-516.8448143,0.00057534,60]
[357249819,1743942676172,-536.09473871,0.00057534,120]
[357249820,1743942676182,-507.31,0.00057534,120]
[357249821,1743942676194,-500.0,0.00057534,120]
[357249822,1743942676204,-336.12935798,0.00057534,120]
[357249823,1743942676214,-514.08209116,0.00057534,120]
[357249824,1743942676225,-522.85156365,0.00057534,120]
[357249825,1743942676236,-500.0,0.00057534,120]
[357249826,1743942676245,-500.0,0.00057534,120]
[357249827,1743942676255,-500.0,0.00057534,120]
[357249828,1743942676265,-507.96125093,0.00057534,120]
[357249829,1743942676274,-575.95017552,0.00057534,120]
[357249830,1743942676283,-500.0,0.00057534,120]
[357249831,1743942676293,-500.0,0.00057534,120]
[357249832,1743942676302,-603.09,0.00057534,10]
[357249833,1743942676419,-567.25620139,0.00057534,120]
[357249834,1743942676429,-588.45316209,0.00057534,120]
[357249835,1743942676439,-533.61592887,0.00057534,120]
[357249836,1743942676448,-573.01446108,0.00057534,120]
[357249837,1743942676458,-423.68147141,0.00057534,120]
[357249838,1743942676471,-500.0,0.00057534,120]
[357249839,1743942676480,-500.0,0.00057534,120]
[357249840,1743942676490,-500.0,0.00057534,120]
[357249841,1743942676499,-522.22288472,0.00057534,120]
[357249842,1743942676509,-500.0,0.00057534,120]
[357249843,1743942676518,-506.41380513,0.00057534,120]
[357249844,1743942676527,-500.0,0.00057534,120]
[357249845,1743942676536,-506.7213438,0.00057534,120]
[357249846,1743942676546,-500.0,0.00057534,120]
[357249847,1743942676555,-500.0,0.00057534,120]
[357249848,1743942676564,-500.0,0.00057534,120]
[357249849,1743942676573,-598.06091338,0.00057534,120]
[357249850,1743942676583,-500.0,0.00057534,120]
[357249851,1743942676593,-500.0,0.00057534,120]
[357249852,1743942676603,-500.0,0.00057534,120]
[357249853,1743942676612,-500.0,0.00057534,120]
[357249854,1743942676621,-500.0,0.00057534,120]
[357249855,1743942676630,-500.0,0.00057534,120]
[357249856,1743942676640,-503.8117298,0.00057534,120]
[357249857,1743942676649,-500.0,0.00057534,120]
[357249858,1743942676659,-500.0,0.00057534,120]
[357249859,1743942676668,-500.0,0.00057534,120]
[357249860,1743942676679,-500.0,0.00057534,120]
[357249861,1743942676688,-500.0,0.00057534,30]
[357249862,1743942676697,-500.0,0.00057534,120]
[357249863,1743942676706,-500.0,0.00057534,120]
[357249864,1743942676716,-526.19280883,0.00057534,120]
[357249865,1743942676726,-500.0,0.00057534,120]
[357249866,1743942676735,-610.11043964,0.00057534,120]
[357249867,1743942676745,-500.0,0.00057534,120]
[357249868,1743942676754,-500.0,0.00057534,120]
[357249869,1743942676764,-500.0,0.00057534,120]
[357249870,1743942676774,-500.0,0.00057534,120]
[357249871,1743942676784,-508.44741564,0.00057534,120]
[357249872,1743942676793,-522.96224345,0.00057534,120]
[357249873,1743942676803,-500.0,0.00057534,120]
[357249874,1743942676812,-500.0,0.00057534,120]
[357249875,1743942676822,-500.0,0.00057534,120]
[357249876,1743942676832,-500.0,0.00057534,120]
[357249877,1743942676841,-512.98394092,0.00057534,120]
[357249878,1743942676851,-500.0,0.00057534,120]
[357249879,1743942676860,-500.0,0.00057534,120]
[357249880,1743942676869,-500.0,0.00057534,120]
[357249881,1743942676879,-500.0,0.00057534,120]
[357249882,1743942676892,-500.0,0.00057534,120]
[357249883,1743942676902,-500.0,0.00057534,120]
[357249884,1743942676913,-500.0,0.00057534,120]
[357249885,1743942676924,-500.0,0.00057534,120]
[357249886,1743942676934,-500.0,0.00057534,120]
[357249887,1743942676943,-541.30609799,0.00057534,120]
[357249888,1743942676952,-500.0,0.00057534,120]
[357249889,1743942676961,-500.0,0.00057534,120]
[357249890,1743942676970,-500.0,0.00057534,2]
[357249891,1743942676979,-500.0,0.00057534,120]
[357249892,1743942676989,-500.0,0.00057534,120]
[357249893,1743942676998,-561.7501292,0.00057534,120]
[357249894,1743942677008,-500.0,0.00057534,120]
[357249895,1743942677018,-500.0,0.00057534,120]
[357249896,1743942677027,-500.0,0.00057534,120]
[357249897,1743942677036,-620.44491808,0.00057534,120]
[357249898,1743942677046,-500.0,0.00057534,120]
[357249899,1743942677055,-500.0,0.00057534,120]
[357249900,1743942677064,-500.0,0.00057534,120]
[357249901,1743942677073,-500.0,0.00057534,120]
[357249902,1743942677083,-500.0,0.00057534,120]
[357249903,1743942677092,-628.0880107,0.00057534,120]
[357249904,1743942677104,-500.0,0.00057534,120]
[357249905,1743942677113,-500.0,0.00057534,120]
[357249906,1743942677122,-500.0,0.00057534,120]
[357249907,1743942677131,-500.0,0.00057534,120]
[357249908,1743942677143,-500.0,0.00057534,120]
[357249909,1743942677154,-500.0,0.00057534,120]
[357249910,1743942677163,-500.0,0.00057534,120]
[357249911,1743942677173,-500.0,0.00057534,120]
[357249912,1743942677184,-500.0,0.00057534,120]
[357249913,1743942677194,-500.0,0.00057534,120]
[357249914,1743942677203,-500.0,0.00057534,120]
[357249915,1743942677212,-500.0,0.00057534,120]
[357249916,1743942677222,-500.0,0.00057534,120]
[357249917,1743942677231,-501.29,0.00057534,120]
[357249918,1743942677240,-500.0,0.00057534,120]
[357249919,1743942677249,-500.0,0.00057534,120]
[357249920,1743942677258,-500.0,0.00057534,120]
[357249921,1743942677267,-698.76,0.00057534,120]
[357249922,1743942677277,-222.59359263,0.00057534,120]
[357249923,1743942677286,-637.49038629,0.00057534,120]
[357249924,1743942677295,-500.0,0.00057534,120]
[357249925,1743942677304,-296.34,0.00057534,120]
[357249926,1743942677314,-500.0,0.00057534,120]
[357249927,1743942677323,-500.0,0.00057534,120]
[357249928,1743942677332,-500.0,0.00057534,120]
[357249929,1743942677341,-500.0,0.00057534,120]
[357249930,1743942677350,-500.0,0.00057534,120]
[357249931,1743942677360,-500.0,0.00057534,120]
[357249932,1743942677368,-339.82717015,0.00057534,120]
[357249933,1743942677378,-500.0,0.00057534,120]
[357249934,1743942677387,-500.0,0.00057534,120]
[357249935,1743942677397,-500.0,0.00057534,120]
[357249936,1743942677406,-500.0,0.00057534,120]
[357249937,1743942677415,-500.0,0.00057534,120]
[357249938,1743942677425,-500.0,0.00057534,120]
[357249939,1743942677434,-539.34947756,0.00057534,120]
[357249940,1743942677443,-500.0,0.00057534,120]
[357249941,1743942677452,-500.0,0.00057534,120]
[357249942,1743942677462,-500.0,0.00057534,120]
[357249943,1743942677471,-500.0,0.00057534,120]
[357249944,1743942677480,-551.18457823,0.00057534,120]
[357249945,1743942677489,-500.0,0.00057534,120]
[357249946,1743942677499,-500.0,0.00057534,120]
[357249947,1743942677508,-500.0,0.00057534,120]
[357249948,1743942677517,-500.0,0.00057534,120]
[357249949,1743942677527,-500.0,0.00057534,120]
[357249950,1743942677536,-500.0,0.00057534,120]
[357249951,1743942677545,-500.0,0.00057534,120]
[357249952,1743942677553,-500.0,0.00057534,120]
[357249953,1743942677562,-500.0,0.00057534,120]
[357249954,1743942677571,-500.0,0.00057534,120]
[357249955,1743942677580,-249.59467715,0.00057534,120]
[357249956,1743942677589,-256.48734064,0.00057534,120]
[357249957,1743942677598,-500.0,0.00057534,120]
[357249958,1743942677607,-500.0,0.00057534,120]
[357249959,1743942677617,-500.0,0.00057534,120]
[357249960,1743942677626,-500.0,0.00057534,120]
[357249961,1743942677635,-500.0,0.00057534,120]
[357249962,1743942677644,-555.30947799,0.00057534,120]
[357249963,1743942677653,-500.0,0.00057534,120]
[357249964,1743942677663,-500.0,0.00057534,120]
[357249965,1743942677672,-424.37233815,0.00057534,120]
[357249966,1743942677682,-500.0,0.00057534,120]
[357249967,1743942677691,-528.21719284,0.00057534,120]
[357249968,1743942677700,-500.0,0.00057534,120]
[357249969,1743942677709,-500.0,0.00057534,120]
[357249970,1743942677718,-500.0,0.00057534,120]
[357249971,1743942677727,-500.0,0.00057534,120]
[357249972,1743942677736,-500.0,0.00057534,120]
[357249973,1743942677746,-500.0,0.00057534,120]
[357249974,1743942677755,-511.0631339,0.00057534,120]
[357249975,1743942677764,-160.25887545,0.00057534,120]
[357249976,1743942677773,-537.65,0.00057534,120]
[357249977,1743942677782,-500.0,0.00057534,120]
[357249978,1743942677791,-500.0,0.00057534,120]
[357249979,1743942677800,-500.0,0.00057534,120]
[357249980,1743942677810,-500.0,0.00057534,120]
[357249981,1743942677819,-500.0,0.00057534,120]
[357249982,1743942677829,-581.32237112,0.00057534,120]
[357249983,1743942677838,-500.0,0.00057534,120]
[357249984,1743942677847,-500.0,0.00057534,120]
[357249985,1743942677856,-500.0,0.00057534,120]
[357249986,1743942677866,-500.0,0.00057534,120]
[357249987,1743942677875,-356.26,0.00057534,120]
[357249988,1743942677884,-160094.37,0.00057534,7]
[357249989,1743942677893,-500.0,0.00057534,120]
[357249990,1743942677902,-500.0,0.00057534,120]
[357249991,1743942677911,-500.0,0.00057534,120]
[357249992,1743942677920,-1860.22,0.00057534,120]
[357249993,1743942677930,-500.0,0.00057534,120]
[357249994,1743942677939,-500.0,0.00057534,120]
[357249995,1743942677948,-500.0,0.00057534,120]
[357249996,1743942677957,-500.0,0.00057534,120]
[357249997,1743942677967,-500.0,0.00057534,120]
[357249998,1743942677976,-500.0,0.00057534,120]
[357249999,1743942677985,-500.0,0.00057534,120]
[357250000,1743942677994,-500.0,0.00057534,120]
[357250001,1743942678004,-500.0,0.00057534,120]
[357250002,1743942678014,-500.0,0.00057534,120]
[357250003,1743942678025,-500.0,0.00057534,120]
[357250004,1743942678034,-500.0,0.00057534,120]
[357250005,1743942678045,-500.0,0.00057534,120]
[357250006,1743942678055,-500.0,0.00057534,120]
[357250007,1743942678065,-500.0,0.00057534,100]
[357250008,1743942678074,-180.20093265,0.00057534,120]
[357250009,1743942678084,-549.56338369,0.00057534,120]
[357250010,1743942678094,-500.0,0.00057534,120]
[357250011,1743942678103,-500.0,0.00057534,120]
[357250012,1743942678113,-500.0,0.00057534,120]
[357250013,1743942678123,-500.0,0.00057534,120]
[357250014,1743942678132,-500.0,0.00057534,120]
[357250015,1743942678143,-534.95796248,0.00057534,120]
[357250016,1743942678155,-500.0,0.00057534,120]
[357250017,1743942678164,-587.43,0.00057534,120]
[357250018,1743942678175,-500.0,0.00057534,120]
[357250019,1743942678185,-500.0,0.00057534,120]
[357250020,1743942678195,-500.0,0.00057534,120]
[357250021,1743942678205,-500.0,0.00057534,120]
[357250022,1743942678215,-500.0,0.00057534,120]
[357250023,1743942678225,-500.0,0.00057534,120]
[357250024,1743942678235,-387.58266242,0.00057534,2]
[357250025,1743942678245,-524.07796384,0.00057534,120]
[357250026,1743942678254,-500.0,0.00057534,120]
[357250027,1743942678263,-293.42363893,0.00057534,120]
[357250028,1743942678273,-500.0,0.00057534,120]
[357250029,1743942678282,-500.0,0.00057534,120]
[357250030,1743942678292,-500.0,0.00057534,120]
[357250031,1743942678302,-500.0,0.00057534,120]
[357250032,1743942678311,-500.0,0.00057534,120]
[357250033,1743942678320,-526.4739631,0.00057534,120]
[357250034,1743942678329,-169.42320907,0.00057534,120]
[357250035,1743942678338,-500.0,0.00057534,120]
[357250036,1743942678347,-552.9659207,0.00057534,120]
[357250037,1743942678357,-500.0,0.00057534,120]
[357250038,1743942678367,-500.0,0.00057534,120]
[357250039,1743942678376,-566.7210808,0.00057534,120]
[357250040,1743942678386,-500.0,0.00057534,120]
[357250041,1743942678395,-500.0,0.00057534,120]
[357250042,1743942678404,-551.04695305,0.00057534,120]
[357250043,1743942678413,-248.18219802,0.00057534,120]
[357250044,1743942678422,-500.0,0.00057534,120]
[357250045,1743942678433,-500.0,0.00057534,120]
[357250046,1743942678442,-500.0,0.00057595,120]
[357250047,1743942678451,-160.19,0.0005794,120]
[357250048,1743942678462,-162.06006299,0.0005794,2]
[357250049,1743942678471,-272.23225324,0.0005799,120]
[357250050,1743942678480,-498305.6,0.0005799,120]
[357250051,1743942678489,-50000.0,0.00058,58]
[357250052,1743942678499,-6048.34182835,0.00058,2]
[357250053,1743942678508,-29709.73632277,0.00058,120]
[357250054,1743942678518,-219.69,0.00058,30]
[357250055,1743942678527,-20000.0,0.00058,120]
[357250056,1743942678536,-171.674689,0.00058,120]
[357250057,1743942678546,-406.0,0.00058,120]
[357250058,1743942678555,-100000.0,0.00058,120]
[357250059,1743942678564,-500.0,0.00058349,120]
[357250060,1743942678573,-300.0,0.000584,120]
[357250061,1743942678582,-150.0133123,0.000587,120]
[357250062,1743942678592,-1500.0,0.00058838,15]
[357250063,1743942678601,-2000.0,0.000589,90]
[357250064,1743942678610,-177.84596546,0.000589,37]
[357250065,1743942678619,-50000.0,0.00059,59]
[357250066,1743942678629,-5163.86899251,0.00059,120]
[357250067,1743942678638,-2038.12348683,0.00059,120]
[357250068,1743942678647,-427.0,0.00059,120]
[357250069,1743942678656,-608.03355455,0.00059,120]
[357250070,1743942678665,-571.31454523,0.0005909,2]
[357250071,1743942678675,-292.65481103,0.00059447,120]
[357250072,1743942678684,-218.79,0.00059464,2]
[357250073,1743942678694,-1670.58,0.000596,60]
[357250074,1743942678703,-500.0,0.0005983,120]
[357250075,1743942678712,-966.67388702,0.0005989,120]
[357250076,1743942678722,-1748.20567978,0.00059893,120]
[357250077,1743942678732,-499.09,0.000599,30]
[357250078,1743942678741,-50000.0,0.0006,60]
[357250079,1743942678751,-500.0,0.0006,120]
[357250080,1743942678760,-1000.0,0.0006,120]
[357250081,1743942678769,-1000.0,0.0006,120]
[357250082,1743942678778,-1000.0,0.0006,120]
[357250083,1743942678787,-1000.0,0.0006,120]
[357250084,1743942678917,-1000.0,0.0006,120]
[357250085,1743942678928,-1660.01951543,0.0006,120]
[357250086,1743942678938,-1000.0,0.0006,120]
[357250087,1743942678947,-1749.66917947,0.0006,120]
[357250088,1743942678956,-1000.0,0.0006,120]
[357250089,1743942678965,-1000.0,0.0006,120]
[357250090,1743942678975,-1000.0,0.0006,120]
[357250091,1743942678984,-1000.0,0.0006,120]
[357250092,1743942678993,-500.0,0.0006,10]
[357250093,1743942679002,-3809.97898232,0.0006,7]
[357250094,1743942679012,-2000.0,0.0006,5]
[357250095,1743942679021,-2321.0,0.0006,120]
[357250096,1743942679030,-156.74961995,0.0006,120]
[357250097,1743942679039,-302.68804093,0.0006,120]
[357250098,1743942679049,-311.31239252,0.0006,120]
[357250099,1743942679058,-1136.32947791,0.0006,30]
[357250100,1743942679068,-1057.40667418,0.0006,120]
[357250101,1743942679077,-150.0,0.0006,30]
[357250102,1743942679086,-769.14,0.0006,120]
[357250103,1743942679096,-300.0,0.0006,2]
[357250104,1743942679105,-2667.38,0.0006,120]
[357250105,1743942679114,-243.95926411,0.0006,120]
[357250106,1743942679123,-300.0,0.0006,30]
[357250107,1743942679132,-406.0,0.0006,120]
[357250108,1743942679143,-190.0,0.0006,120]
[357250109,1743942679154,-680.0,0.0006009,90]
[357250110,1743942679164,-2000.0,0.0006009,120]
[357250111,1743942679174,-500.0,0.0006009,5]
[357250112,1743942679185,-39999.82,0.000601,2]
[357250113,1743942679196,-1359.752177,0.00060273,120]
[357250114,1743942679205,-191.282216,0.00060273,120]
[357250115,1743942679214,-765.128864,0.00060273,120]
[357250116,1743942679226,-409.08108779,0.00060273,120]
[357250117,1743942679236,-199.80237637,0.00060273,120]
[357250118,1743942679246,-3762.926346,0.00060273,120]
[357250119,1743942679255,-500.0,0.00060273,120]
[357250120,1743942679264,-500.0,0.00060273,120]
[357250121,1743942679275,-500.0,0.00060273,120]
[357250122,1743942679284,-500.0,0.00060273,120]
[357250123,1743942679294,-585.85,0.00060273,120]
[357250124,1743942679305,-500.0,0.00060273,120]
[357250125,1743942679314,-500.0,0.00060273,120]
[357250126,1743942679324,-510.55470994,0.00060273,120]
[357250127,1743942679333,-515.92217371,0.00060273,120]
[357250128,1743942679344,-518.19558025,0.00060273,120]
[357250129,1743942679354,-541.69623675,0.00060273,120]
[357250130,1743942679363,-500.0,0.00060273,120]
[357250131,1743942679372,-532.19985468,0.00060273,120]
[357250132,1743942679382,-500.0,0.00060273,120]
[357250133,1743942679391,-500.0,0.00060273,120]
[357250134,1743942679400,-500.0,0.00060273,120]
[357250135,1743942679410,-500.0,0.00060273,120]
[357250136,1743942679419,-500.0,0.00060273,120]
[357250137,1743942679429,-500.0,0.00060273,120]
[357250138,1743942679439,-1000.0,0.00060273,120]
[357250139,1743942679448,-500.0,0.00060273,120]
[357250140,1743942679458,-545.23295092,0.00060273,120]
[357250141,1743942679467,-500.0,0.00060273,120]
[357250142,1743942679478,-534.74003152,0.00060273,120]
[357250143,1743942679491,-500.0,0.00060273,120]
[357250144,1743942679500,-500.0,0.00060273,120]
[357250145,1743942679510,-500.0,0.00060273,120]
[357250146,1743942679520,-500.0,0.00060273,120]
[357250147,1743942679529,-167.6873721,0.00060273,120]
[357250148,1743942679539,-510.93256629,0.00060273,120]
[357250149,1743942679548,-500.0,0.00060273,120]
[357250150,1743942679559,-243.22574923,0.00060273,120]
[357250151,1743942679571,-500.0,0.00060273,120]
[357250152,1743942679581,-595.83257865,0.00060273,120]
[357250153,1743942679590,-516.92928667,0.00060273,120]
[357250154,1743942679600,-163.54853109,0.00060273,120]
[357250155,1743942679610,-506.16907196,0.00060273,120]
[357250156,1743942679619,-502.51333407,0.00060273,120]
[357250157,1743942679629,-172.1537942,0.00060273,120]
[357250158,1743942679638,-500.0,0.00060273,120]
[357250159,1743942679648,-500.0,0.00060273,120]
[357250160,1743942679657,-500.0,0.00060273,120]
[357250161,1743942679667,-500.0,0.00060273,120]
[357250162,1743942679677,-500.0,0.00060273,120]
[357250163,1743942679686,-500.0,0.00060273,120]
[357250164,1743942679695,-544.97412184,0.00060273,120]
[357250165,1743942679705,-496.19661,0.00060273,120]
[357250166,1743942679715,-500.0,0.00060273,120]
[357250167,1743942679724,-507.99514851,0.00060273,120]
[357250168,1743942679734,-526.98646411,0.00060273,120]
[357250169,1743942679743,-500.0,0.00060273,120]
[357250170,1743942679752,-500.0,0.00060273,120]
[357250171,1743942679761,-500.0,0.00060273,120]
[357250172,1743942679770,-500.0,0.00060273,120]
[357250173,1743942679780,-500.0,0.00060273,120]
[357250174,1743942679789,-500.0,0.00060273,120]
[357250175,1743942679798,-500.0,0.00060273,120]
[357250176,1743942679807,-500.0,0.00060273,120]
[357250177,1743942679817,-500.0,0.00060273,120]
[357250178,1743942679825,-500.0,0.00060273,120]
[357250179,1743942679835,-500.0,0.00060273,120]
[357250180,1743942679843,-500.0,0.00060273,120]
[357250181,1743942679852,-500.0,0.00060273,120]
[357250182,1743942679862,-500.0,0.00060273,120]
[357250183,1743942679871,-500.0,0.00060273,120]
[357250184,1743942679880,-500.0,0.00060273,120]
[357250185,1743942679889,-500.0,0.00060273,120]
[357250186,1743942679899,-500.0,0.00060273,120]
[357250187,1743942679908,-500.0,0.00060273,120]
[357250188,1743942679918,-570.38504111,0.00060273,120]
[357250189,1743942679927,-512.29,0.00060273,120]
[357250190,1743942679936,-241.93463523,0.00060273,120]
[357250191,1743942679946,-640.50318337,0.00060273,120]
[357250192,1743942679955,-500.0,0.00060273,120]
[357250193,1743942679964,-500.0,0.00060273,120]
[357250194,1743942679974,-500.0,0.00060273,120]
[357250195,1743942679983,-500.0,0.00060273,120]
[357250196,1743942679992,-332.38765735,0.00060273,120]
[357250197,1743942680002,-500.0,0.00060273,30]
[357250198,1743942680012,-602.08113545,0.00060273,120]
[357250199,1743942680021,-500.0,0.00060273,120]
[357250200,1743942680031,-500.0,0.00060273,120]
[357250201,1743942680040,-519.86,0.00060273,120]
[357250202,1743942680050,-500.0,0.00060273,120]
[357250203,1743942680059,-500.0,0.00060273,120]
[357250204,1743942680069,-500.0,0.00060273,120]
[357250205,1743942680078,-500.0,0.00060273,120]
[357250206,1743942680087,-6218.07,0.00060273,120]
[357250207,1743942680096,-566.18308514,0.00060273,120]
[357250208,1743942680105,-500.0,0.00060273,120]
[357250209,1743942680115,-500.0,0.00060273,120]
[357250210,1743942680124,-500.0,0.00060273,120]
[357250211,1743942680133,-500.0,0.00060273,120]
[357250212,1743942680142,-500.0,0.00060273,120]
[357250213,1743942680154,-500.0,0.00060273,120]
[357250214,1743942680164,-500.0,0.00060273,120]
[357250215,1743942680174,-500.0,0.00060273,120]
[357250216,1743942680185,-500.0,0.00060273,120]
[357250217,1743942680195,-500.0,0.00060273,120]
[357250218,1743942680205,-500.0,0.00060273,120]
[357250219,1743942680215,-500.0,0.00060273,120]
[357250220,1743942680228,-500.0,0.00060273,120]
[357250221,1743942680238,-500.0,0.00060273,120]
[357250222,1743942680247,-500.0,0.00060273,120]
[357250223,1743942680256,-482.77136046,0.00060273,120]
[357250224,1743942680266,-500.0,0.00060273,120]
[357250225,1743942680276,-500.0,0.00060273,120]
[357250226,1743942680286,-500.0,0.00060273,120]
[357250227,1743942680296,-500.0,0.00060273,120]
[357250228,1743942680306,-165.56446657,0.00060273,120]
[357250229,1743942680316,-536.21771112,0.00060273,120]
[357250230,1743942680326,-500.0,0.00060273,120]
[357250231,1743942680336,-182.77271243,0.00060273,120]
[357250232,1743942680346,-500.0,0.00060273,120]
[357250233,1743942680356,-500.0,0.00060273,120]
[357250234,1743942680366,-1081.04,0.00060273,120]
[357250235,1743942680375,-500.0,0.00060273,120]
[357250236,1743942680386,-500.0,0.00060273,120]
[357250237,1743942680395,-500.0,0.00060273,120]
[357250238,1743942680405,-500.0,0.00060273,120]
[357250239,1743942680415,-500.0,0.00060273,120]
[357250240,1743942680425,-546.34990939,0.00060273,120]
[357250241,1743942680436,-463.56,0.00060273,120]
[357250242,1743942680445,-500.0,0.00060273,120]
[357250243,1743942680455,-500.0,0.00060273,120]
[357250244,1743942680464,-500.0,0.00060273,120]
[357250245,1743942680474,-500.0,0.00060273,120]
[357250246,1743942680484,-500.0,0.00060273,120]
[357250247,1743942680494,-378.49,0.00060273,120]
[357250248,1743942680503,-573.81944638,0.00060273,120]
[357250249,1743942680513,-507.31,0.00060273,120]
[357250250,1743942680523,-603.09,0.00060273,10]
[357250251,1743942680532,-500.0,0.00060273,120]
[357250252,1743942680542,-500.0,0.00060273,120]
[357250253,1743942680551,-500.0,0.00060273,120]
[357250254,1743942680560,-500.0,0.00060273,120]
[357250255,1743942680570,-500.0,0.00060273,120]
[357250256,1743942680580,-160.44710712,0.00060273,120]
[357250257,1743942680590,-500.0,0.00060273,30]
[357250258,1743942680599,-500.0,0.00060273,120]
[357250259,1743942680609,-500.0,0.00060273,120]
[357250260,1743942680619,-561.63018484,0.00060273,120]
[357250261,1743942680628,-310.74,0.00060273,120]
[357250262,1743942680638,-500.0,0.00060273,120]
[357250263,1743942680647,-500.0,0.00060273,120]
[357250264,1743942680656,-500.0,0.00060273,120]
[357250265,1743942680666,-500.0,0.00060273,120]
[357250266,1743942680676,-500.0,0.00060273,120]
[357250267,1743942680686,-500.0,0.00060273,120]
[357250268,1743942680696,-500.0,0.00060273,120]
[357250269,1743942680706,-500.0,0.00060273,120]
[357250270,1743942680715,-500.0,0.00060273,120]
[357250271,1743942680725,-500.0,0.00060273,2]
[357250272,1743942680734,-270.99,0.00060273,120]
[357250273,1743942680744,-237.55742287,0.00060273,120]
[357250274,1743942680753,-500.0,0.00060273,120]
[357250275,1743942680763,-500.0,0.00060273,120]
[357250276,1743942680772,-173.13145542,0.00060273,120]
[357250277,1743942680782,-503.51944324,0.00060273,120]
[357250278,1743942680792,-500.0,0.00060273,120]
[357250279,1743942680801,-558.24999418,0.00060273,120]
[357250280,1743942680811,-500.0,0.00060273,120]
[357250281,1743942680820,-500.0,0.00060273,120]
[357250282,1743942680830,-193.18881156,0.00060273,120]
[357250283,1743942680839,-242.47,0.00060273,120]
[357250284,1743942680849,-698.76,0.00060273,120]
[357250285,1743942680858,-500.0,0.00060273,120]
[357250286,1743942680868,-500.0,0.00060273,120]
[357250287,1743942680878,-500.0,0.00060273,120]
[357250288,1743942680887,-170.39,0.00060273,120]
[357250289,1743942680897,-500.0,0.00060273,120]
[357250290,1743942680906,-500.0,0.00060273,120]
[357250291,1743942680916,-500.0,0.00060273,120]
[357250292,1743942680925,-500.0,0.00060273,120]
[357250293,1743942680935,-500.0,0.00060273,120]
[357250294,1743942680945,-500.0,0.00060273,120]